bitfinex-derivatives/quotes_ETHF0:USTF0_20260305
["timestamp","ask_amount","ask_price","bid_price","bid_amount"]
[1772733009897,0.55503799,2057.7,2057.0,0.58853625]
[1772733010103,0.55503799,2057.7,2056.5,0.58853625]
[1772733012004,0.55503799,2057.5,2056.5,0.58853625]
[1772733012203,5.98104716,2058.0,2056.5,0.58853625]
[1772733012204,0.55503799,2057.9,2056.5,0.58853625]
[1772733012411,0.00525716,2058.0,2056.9,0.58853625]
[1772733012611,0.55503799,2058.5,2057.3,0.58853625]
[1772733012807,0.55503799,2058.5,2057.4,0.58853625]
[1772733013006,0.55503799,2058.5,2057.5,0.58853625]
[1772733013206,0.55503799,2058.1,2057.2,0.58853625]
[1772733013506,0.24289,2058.2,2057.2,0.58853625]
[1772733013706,0.00623699,2058.1,2057.3,0.58853625]
[1772733014305,0.55503799,2058.8,2057.5,0.58853625]
[1772733014506,0.55503799,2058.8,2057.6,0.58853625]
[1772733015309,0.55992812,2058.8,2057.6,0.58853625]
[1772733016411,0.00489013,2058.8,2057.8,0.58853625]
[1772733017008,0.55992812,2058.8,2057.8,0.58853625]
[1772733017213,0.55992812,2058.8,2057.9,0.58853625]
[1772733017515,0.55992812,2058.8,2057.9,0.59478816]
[1772733017911,0.55503799,2058.4,2057.9,0.00625191]
[1772733018306,5.97841013,2058.8,2058.0,0.58853625]
[1772733018307,0.00489013,2058.8,2058.0,0.58853625]
[1772733018817,0.55503799,2059.2,2058.0,0.58853625]
[1772733019613,0.55503799,2058.8,2058.0,0.58853625]
[1772733019813,0.55859729,2058.8,2058.0,0.58853625]
[1772733020811,0.0035593,2058.8,2058.0,0.58853625]
[1772733021414,0.55859729,2058.8,2057.9,0.00625191]
[1772733021610,0.55503799,2058.6,2057.9,0.00625191]
[1772733021815,0.0035593,2058.8,2057.9,0.00625191]
[1772733021816,0.55503799,2058.4,2057.9,0.00625191]
[1772733024419,0.55503799,2058.2,2057.3,0.58853625]
[1772733025015,6.3505593,2058.8,2057.5,0.58853625]
[1772733025016,0.55503799,2058.7,2057.5,0.58853625]
[1772733025517,0.55503799,2058.5,2057.5,0.59221631]
[1772733025819,0.55503799,2058.7,2057.5,0.59221631]
[1772733026020,0.55503799,2058.4,2057.5,0.59221631]
[1772733028320,0.54726189,2058.2,2057.5,0.59221631]
[1772733028620,0.54726189,2058.2,2057.5,0.00368006]
[1772733028823,0.54726189,2058.0,2057.5,0.00368006]
[1772733030417,0.54249058,2057.8,2056.8,0.59557648]
[1772733030718,6.347,2058.2,2056.8,0.59557648]
[1772733030719,0.54249058,2057.6,2056.8,0.59557648]
[1772733030920,0.54249058,2057.6,2056.7,9.525]
[1772733031521,0.54249058,2057.6,2056.8,0.59557648]
[1772733033416,0.54249058,2058.1,2056.8,0.59557648]
[1772733034017,0.54249058,2058.1,2057.0,0.59557648]
[1772733034217,0.54249058,2058.1,2057.1,0.59557648]
[1772733037023,0.54249058,2057.9,2056.9,10.12757648]
[1772733037319,0.54249058,2057.5,2056.7,0.00560356]
[1772733037517,6.44989488,2057.8,2056.7,0.00560356]
[1772733037518,0.54249058,2057.3,2056.7,0.00560356]
[1772733037714,0.54249058,2057.3,2055.9,8.60435115]
[1772733037715,0.54249058,2056.9,2056.0,0.59557648]
[1772733037922,0.54249058,2057.4,2056.2,0.59557648]
[1772733038123,0.24302,2057.1,2056.1,3.11586402]
[1772733038325,0.54249058,2056.8,2056.0,0.59557648]
[1772733038524,0.54249058,2056.8,2055.9,0.94110241]
[1772733038719,0.5480276,2056.8,2055.9,0.94720544]
[1772733038925,0.00553702,2056.8,2056.0,0.59557648]
[1772733039322,0.5480276,2056.8,2056.0,0.59557648]
[1772733039522,0.00553702,2056.8,2056.2,0.59557648]
[1772733040621,0.5480276,2056.8,2056.0,0.59557648]
[1772733043627,0.00553702,2056.8,2056.1,0.59557648]
[1772733044423,0.00553702,2056.8,2056.0,3.11586402]
[1772733044424,0.5480276,2056.8,2055.9,0.94720544]
[1772733044727,0.5480276,2056.8,2056.0,0.59557648]
[1772733045427,0.54249058,2056.6,2056.0,0.59557648]
[1772733046330,0.54249058,2056.6,2055.9,0.94720544]
[1772733046522,0.00553702,2056.8,2055.9,0.94720544]
[1772733046523,0.54249058,2056.4,2055.9,0.94720544]
[1772733046827,0.54249058,2056.4,2054.9,7.57863475]
[1772733046828,6.52408058,2056.0,2054.9,7.57863475]
[1772733047030,6.52408058,2056.0,2054.6,10.07346149]
[1772733047031,0.54249058,2055.8,2054.8,0.59557648]
[1772733047331,0.54249058,2056.2,2055.0,0.59557648]
[1772733047526,6.35,2056.4,2055.3,0.59557648]
[1772733047527,0.54249058,2056.4,2055.3,0.59557648]
[1772733047732,0.54249058,2056.6,2055.6,0.59557648]
[1772733047927,0.54249058,2056.6,2055.6,0.59999621]
[1772733049524,0.54249058,2056.6,2055.7,0.59557648]
[1772733050525,0.54249058,2056.4,2055.6,0.00441973]
[1772733050823,0.54249058,2056.6,2055.6,0.59999621]
[1772733051024,0.00553702,2056.8,2055.8,0.59557648]
[1772733051025,0.5480276,2056.8,2055.8,0.59557648]
[1772733054630,0.54249058,2056.6,2055.8,0.59557648]
[1772733055635,0.54249058,2056.4,2055.6,0.00441973]
[1772733055827,0.54249058,2056.4,2055.6,0.59999621]
[1772733056632,0.54249058,2056.7,2055.6,0.59999621]
[1772733057843,0.54249058,2056.7,2055.9,0.59557648]
[1772733058342,0.00553702,2056.8,2055.9,0.59557648]
[1772733058739,0.5480276,2056.8,2055.9,0.59557648]
[1772733060044,0.00553702,2056.8,2055.9,0.59557648]
[1772733060241,0.60123753,2057.2,2056.5,0.58938824]
[1772733060436,0.60123753,2057.4,2056.5,0.58938824]
[1772733060836,0.60123753,2057.4,2056.8,0.58938824]
[1772733061039,0.60123753,2057.9,2056.8,0.58938824]
[1772733061237,0.60705405,2057.9,2056.8,0.58938824]
[1772733061438,0.60123753,2057.7,2056.8,0.58938824]
[1772733061640,0.60123753,2057.5,2056.7,0.58938824]
[1772733061839,0.60123753,2056.9,2056.1,0.58938824]
[1772733062045,5.97822,2057.2,2056.1,0.58938824]
[1772733062046,0.60123753,2056.7,2056.1,0.58938824]
[1772733062649,5.97822,2057.2,2055.7,0.58938824]
[1772733062650,0.60123753,2056.5,2055.7,0.58938824]
[1772733063240,0.60123753,2056.3,2055.7,0.58938824]
[1772733063549,0.60123753,2056.5,2055.7,0.58938824]
[1772733063848,0.60123753,2056.9,2055.7,0.58938824]
[1772733064043,0.60123753,2056.9,2056.2,0.58938824]
[1772733064344,0.60123753,2057.0,2056.2,0.58938824]
[1772733064542,0.60469687,2057.0,2055.9,0.58938824]
[1772733064943,0.00345934,2057.0,2056.2,0.58938824]
[1772733065544,0.60123753,2057.3,2056.2,0.58938824]
[1772733066242,0.60123753,2057.3,2056.5,0.58938824]
[1772733066443,0.60531762,2057.3,2056.5,0.58938824]
[1772733066648,0.00408009,2057.3,2056.5,0.58938824]
[1772733067544,0.60531762,2057.3,2056.5,0.58938824]
[1772733067937,0.60123753,2057.1,2056.2,0.58938824]
[1772733068339,0.60123753,2056.7,2056.0,0.58938824]
[1772733068546,0.60123753,2056.5,2055.7,0.58938824]
[1772733070853,0.60123753,2056.8,2055.7,0.58938824]
[1772733071443,0.60123753,2056.6,2055.7,0.58938824]
[1772733071948,0.60123753,2056.4,2055.6,0.00441973]
[1772733072249,0.60123753,2056.0,2055.1,0.58938824]
[1772733072553,0.60123753,2056.0,2054.7,17.190307]
[1772733072554,0.60123753,2056.0,2055.3,0.58938824]
[1772733073252,0.60123753,2056.0,2055.3,0.5948947]
[1772733073753,0.60123753,2056.9,2055.6,0.58938824]
[1772733074252,0.60123753,2056.9,2055.9,0.58938824]
[1772733074749,0.84426753,2057.1,2056.1,0.58938824]
[1772733074954,0.60123753,2057.1,2056.1,0.58938824]
[1772733075855,0.60531762,2057.3,2056.4,0.58938824]
[1772733076049,0.00408009,2057.3,2056.4,0.58938824]
[1772733076649,0.60531762,2057.3,2056.4,0.58938824]
[1772733078458,0.00408009,2057.3,2056.4,0.58938824]
[1772733079356,0.60531762,2057.3,2056.4,0.58938824]
[1772733080253,0.60531762,2057.3,2056.6,0.58938824]
[1772733080558,9.90030472,2058.2,2056.7,0.58938824]
[1772733080559,0.60123753,2058.0,2056.7,0.58938824]
[1772733080757,0.84418753,2057.7,2056.7,0.58938824]
[1772733080957,0.60123753,2057.6,2056.7,0.58938824]
[1772733081355,0.6063613,2057.6,2056.7,0.58938824]
[1772733081957,0.6063613,2057.6,2056.5,41.38938824]
[1772733081958,0.60123753,2057.4,2056.5,41.38938824]
[1772733082158,0.60123753,2057.4,2056.6,0.58938824]
[1772733082548,0.6063613,2057.6,2056.7,0.58938824]
[1772733082754,0.00512377,2057.6,2056.7,0.58938824]
[1772733083255,9.79002633,2059.3,2057.4,0.58938824]
[1772733083256,0.60123753,2058.2,2057.4,0.58938824]
[1772733083456,0.2428,2059.0,2057.8,0.58938824]
[1772733083457,0.60123753,2058.9,2057.8,0.58938824]
[1772733084052,0.60476764,2058.9,2057.8,0.59481525]
[1772733084457,0.00353011,2058.9,2058.1,0.58938824]
[1772733084655,0.60123753,2059.3,2058.1,0.58938824]
[1772733085357,0.60123753,2059.1,2058.1,0.58938824]
[1772733085558,0.60123753,2058.9,2058.1,0.58938824]
[1772733085758,0.00350968,2058.9,2058.1,0.58938824]
[1772733085951,0.60123753,2059.3,2058.4,0.58938824]
[1772733086157,0.84397753,2059.5,2058.7,0.58938824]
[1772733086662,0.60123753,2059.4,2058.3,0.58938824]
[1772733086856,0.60651206,2059.4,2058.3,0.58938824]
[1772733087256,0.00527453,2059.4,2058.3,0.58938824]
[1772733087961,0.60517902,2059.4,2058.3,0.58938824]
[1772733091658,0.55043223,2059.7,2058.4,0.54243148]
[1772733091862,0.55043223,2060.1,2058.9,0.54243148]
[1772733092053,9.89093472,2061.4,2059.2,0.54243148]
[1772733092054,0.55043223,2060.5,2059.2,0.54243148]
[1772733092254,0.55043223,2060.5,2059.1,3.11324552]
[1772733092255,0.55043223,2060.5,2059.4,0.54243148]
[1772733092457,0.55043223,2060.5,2059.3,0.54243148]
[1772733092761,0.55043223,2060.3,2059.3,0.54714179]
[1772733092961,0.24263,2060.4,2059.3,0.00471031]
[1772733092962,0.55043223,2060.1,2059.3,0.00471031]
[1772733094259,0.55043223,2059.9,2058.9,40.8]
[1772733094460,0.55043223,2059.7,2058.2,0.54243148]
[1772733094660,0.55043223,2059.5,2058.2,0.54243148]
[1772733094858,6.348,2059.6,2057.1,7.33818479]
[1772733095157,6.348,2059.6,2055.9,26.44653926]
[1772733095158,5.9781,2057.2,2055.9,26.44653926]
[1772733095359,5.9781,2057.2,2055.9,0.005711]
[1772733095360,6.22172,2057.0,2055.9,0.005711]
[1772733095554,11.53479834,2056.9,2055.9,0.005711]
[1772733095758,5.18679834,2056.8,2055.9,0.005711]
[1772733095953,6.348,2056.7,2055.9,0.005711]
[1772733096354,0.24304,2057.0,2055.9,26.45225026]
[1772733096560,0.00545261,2057.2,2056.0,0.61110583]
[1772733096757,0.00545261,2057.2,2055.9,26.45225026]
[1772733096758,6.35345261,2057.2,2056.2,0.61110583]
[1772733096955,0.00545261,2057.2,2056.2,0.61110583]
[1772733097160,6.35445261,2057.2,2056.2,0.61110583]
[1772733098056,6.35545261,2057.2,2056.2,0.61110583]
[1772733098262,14.4772,2058.2,2055.9,7.51302208]
[1772733098263,9.89967472,2058.4,2056.4,0.60563455]
[1772733098463,14.0075821,2058.3,2056.6,0.60563455]
[1772733098761,14.00616758,2058.2,2056.6,0.60563455]
[1772733098960,6.35,2058.2,2056.8,0.60563455]
[1772733099156,0.24285,2058.5,2056.8,0.60563455]
[1772733099362,6.351,2058.4,2057.0,0.60563455]
[1772733099668,13.8741048,2058.3,2056.7,0.60563455]
[1772733099862,7.6562048,2058.2,2056.7,0.60563455]
[1772733100260,6.351,2058.1,2056.8,27.05308518]
[1772733100462,6.351,2058.0,2056.8,0.60654592]
[1772733100664,6.351,2057.9,2056.9,26.44653926]
[1772733101665,0.24288,2058.3,2057.0,0.60654592]
[1772733101862,5.97800922,2058.5,2057.0,0.60654592]
[1772733101863,0.00365922,2058.5,2057.0,0.60654592]
[1772733102068,6.351,2058.4,2057.2,0.60654592]
[1772733102464,7.65492102,2058.3,2057.2,0.60654592]
[1772733102668,6.59388,2058.3,2057.3,26.44653926]
[1772733102869,6.59388,2058.3,2057.1,0.61003815]
[1772733103066,0.24288,2058.3,2057.1,0.61003815]
[1772733103267,6.352,2058.2,2057.1,0.61003815]
[1772733103467,6.352,2058.2,2057.3,0.61003815]
[1772733104269,6.352,2058.3,2057.5,0.61180273]
[1772733104465,0.00365922,2058.5,2057.5,0.61773443]
[1772733104669,0.00365922,2058.5,2057.7,0.61180273]
[1772733105169,11.82377064,2059.5,2057.9,0.61180273]
[1772733105170,3.92489472,2059.3,2057.9,0.61180273]
[1772733105369,6.352,2059.8,2058.1,0.61180273]
[1772733105574,7.64999453,2059.7,2058.3,0.61180273]
[1772733105879,6.352,2059.9,2058.5,0.61180273]
[1772733106076,0.0053341,2059.9,2058.5,0.61180273]
[1772733106277,0.0053341,2059.9,2058.7,0.61155261]
[1772733106575,0.0053341,2059.9,2058.9,0.61155261]
[1772733106773,7.65458556,2059.9,2058.9,0.61155261]
[1772733106975,0.0053341,2059.9,2059.0,27.05809187]
[1772733107181,0.0053341,2059.9,2059.0,0.61578085]
[1772733107378,7.65439982,2059.9,2059.0,0.61578085]
[1772733107880,6.352,2059.8,2059.1,27.05809187]
[1772733108076,6.352,2059.8,2059.1,26.44653926]
[1772733108281,7.89315044,2059.7,2058.5,0.61086967]
[1772733108481,7.89315044,2059.7,2058.9,7.12766026]
[1772733108781,7.89315044,2059.7,2058.6,26.06688844]
[1772733109179,7.89315044,2059.7,2058.6,26.0730391]
[1772733109382,13.86406044,2059.7,2058.6,26.0730391]
[1772733109679,7.65044044,2059.6,2058.6,18.94537884]
[1772733110185,0.24274,2059.5,2058.6,18.94537884]
[1772733110479,7.65044044,2059.6,2058.6,18.94537884]
[1772733110480,7.65044044,2059.6,2058.8,0.61012635]
[1772733110685,6.351,2059.8,2058.8,0.61012635]
[1772733110982,6.3563341,2059.9,2059.0,0.61012635]
[1772733111178,7.64925146,2059.8,2059.0,0.61012635]
[1772733111384,0.0053341,2059.9,2059.0,0.61012635]
[1772733111385,6.3563341,2059.9,2059.0,0.61012635]
[1772733111584,7.64925146,2059.8,2059.1,26.06688844]
[1772733112083,0.24271,2059.7,2059.2,18.93922818]
[1772733112283,0.24271,2059.7,2058.6,0.00615066]
[1772733112482,0.24271,2059.7,2058.8,25.76365151]
[1772733112684,7.89196146,2059.7,2058.8,25.76365151]
[1772733113883,7.89196146,2059.7,2058.8,26.37475174]
[1772733114281,6.351,2059.6,2058.8,26.37475174]
[1772733114481,7.64925146,2059.5,2058.8,26.37475174]
[1772733115185,7.64925146,2059.4,2058.8,26.37475174]
[1772733116083,6.351,2059.5,2058.8,26.37475174]
[1772733116386,6.351,2059.5,2058.6,0.00492628]
[1772733116387,0.24281,2058.9,2058.6,0.00492628]
[1772733116585,0.34749302,2058.4,2058.2,25.17570853]
[1772733116781,6.69849302,2058.4,2057.8,0.54243148]
[1772733116980,6.351,2058.4,2057.8,0.54243148]
[1772733117377,3.92489472,2058.8,2057.3,40.8]
[1772733117378,3.92489472,2058.8,2057.9,25.77683344]
[1772733117582,7.65382363,2058.7,2057.9,0.60632594]
[1772733117885,0.24285,2058.5,2058.0,25.77683344]
[1772733118085,0.00185412,2058.4,2058.0,20.83019167]
[1772733118286,0.24470412,2058.5,2058.0,20.83019167]
[1772733118689,0.00709455,2058.8,2058.1,0.60019785]
[1772733118885,6.351,2058.7,2058.1,0.60019785]
[1772733119086,0.00524043,2058.8,2058.3,0.60019785]
[1772733119288,6.351,2059.4,2058.3,0.60019785]
[1772733119485,6.351,2059.3,2058.5,0.60019785]
[1772733119684,0.00185412,2059.2,2058.4,20.83019167]
[1772733120188,0.00179332,2059.0,2058.4,20.83019167]
[1772733120387,0.24278,2059.1,2058.5,0.60035179]
[1772733120684,0.00381306,2059.2,2058.5,0.60035179]
[1772733120892,6.352,2059.9,2058.7,0.60035179]
[1772733121191,0.00179332,2059.7,2058.7,0.60035179]
[1772733121385,0.00179332,2059.8,2058.9,0.60035179]
[1772733121592,0.24451332,2059.6,2059.0,2.7821434]
[1772733121790,0.24454332,2059.4,2059.0,20.82015987]
[1772733121988,0.00482204,2059.6,2058.6,0.60035179]
[1772733121989,0.24277,2059.2,2058.6,0.60035179]
[1772733122290,7.89469719,2059.2,2058.7,20.27586349]
[1772733122483,7.65192719,2059.2,2058.8,18.65057322]
[1772733122687,6.352,2059.5,2058.8,0.60252495]
[1772733122884,7.65084924,2059.4,2058.9,20.27586349]
[1772733123182,7.65084924,2059.4,2058.6,0.60252495]
[1772733123388,14.00284924,2059.4,2058.8,0.60252495]
[1772733123686,14.00284924,2059.4,2058.3,9.747]
[1772733123687,0.00482204,2059.6,2059.0,0.60252495]
[1772733123889,6.352,2059.5,2059.0,0.60252495]
[1772733124089,6.352,2059.5,2059.1,20.27586349]
[1772733124286,6.352,2059.5,2058.7,0.60395671]
[1772733124790,6.352,2059.5,2058.3,9.747]
[1772733124791,6.352,2059.5,2058.9,0.60395671]
[1772733125184,6.352,2059.5,2059.0,20.27586349]
[1772733125185,7.65073774,2059.4,2059.0,20.27586349]
[1772733125383,7.65073774,2059.4,2058.6,0.60395671]
[1772733126089,0.00482204,2059.6,2058.8,0.60339693]
[1772733126285,3.92489472,2060.1,2058.9,0.24281]
[1772733126490,3.92489472,2060.6,2059.2,0.60339693]
[1772733126687,6.352,2060.6,2059.4,0.60339693]
[1772733126890,6.352,2060.6,2059.6,0.60339693]
[1772733127091,6.352,2060.9,2059.6,0.60339693]
[1772733127291,6.35733789,2060.9,2059.8,0.60339693]
[1772733127492,0.00533789,2060.9,2059.8,0.60339693]
[1772733127694,0.00533789,2060.9,2060.0,0.60339693]
[1772733128093,0.00533789,2060.9,2060.2,0.60246558]
[1772733128685,0.00533789,2060.9,2060.3,20.27586349]
[1772733128891,0.00533789,2060.9,2060.3,20.87832907]
[1772733129092,6.35633789,2060.9,2060.4,0.60246558]
[1772733129590,6.35633789,2060.9,2060.6,0.60246558]
[1772733129591,0.00533789,2060.9,2060.6,0.60246558]
[1772733129796,6.352,2061.3,2060.6,0.60246558]
[1772733129996,3.92489472,2061.6,2060.8,0.60246558]
[1772733130297,6.351,2061.6,2060.8,0.60246558]
[1772733130695,6.20815,2061.5,2060.9,20.21767754]
[1772733130890,4.16739472,2061.5,2060.9,1.42432212]
[1772733131091,6.351,2061.4,2061.0,18.64922376]
[1772733131297,0.00594478,2061.6,2061.1,0.60117549]
[1772733131592,0.24244,2062.0,2061.2,0.60117549]
[1772733131799,10.27589472,2062.2,2061.3,0.60117549]
[1772733131993,5.85219064,2062.4,2061.4,0.60117549]
[1772733131994,3.92489472,2062.3,2061.4,0.60117549]
[1772733132295,0.24659901,2062.2,2061.4,18.04804827]
[1772733132594,5.96349,2062.3,2060.0,0.60124845]
[1772733132595,0.24252,2061.4,2060.0,0.60124845]
[1772733132793,0.24252,2061.4,2060.3,0.60124845]
[1772733132988,0.24254,2061.2,2060.3,0.60124845]
[1772733133193,0.24254,2061.2,2060.4,18.82232222]
[1772733133394,3.92489472,2061.4,2060.5,0.60124845]
[1772733133699,0.00418041,2061.4,2060.5,0.60530244]
[1772733133997,0.00418041,2061.4,2060.7,0.60124845]
[1772733134592,0.00418041,2061.4,2060.9,0.6033613]
[1772733135198,0.00418041,2061.4,2061.0,19.42568352]
[1772733135400,0.00418041,2061.4,2060.7,0.6033613]
[1772733135796,0.00418041,2061.4,2060.6,18.82232222]
[1772733136199,0.00418041,2061.4,2060.7,0.60558266]
[1772733136596,0.00418041,2061.4,2060.8,18.82232222]
[1772733136797,6.20878,2061.3,2060.5,0.00405399]
[1772733136993,0.24255,2061.1,2060.5,18.33754621]
[1772733137199,4.16744472,2061.1,2060.5,0.00405399]
[1772733137793,0.24257,2060.9,2060.5,0.00405399]
[1772733138294,7.6910135,2060.9,2060.5,0.00405399]
[1772733138697,6.35,2060.9,2060.6,0.60622754]
[1772733139199,6.35,2060.9,2060.5,18.33754621]
[1772733139401,6.35,2060.9,2060.5,0.00405399]
[1772733139402,7.34467164,2060.8,2060.5,0.00405399]
[1772733139702,7.34467164,2060.8,2060.5,18.33754621]
[1772733139904,6.351,2060.7,2060.5,18.33754621]
[1772733140099,3.92489472,2061.3,2060.6,0.60899229]
[1772733140299,13.69587955,2061.2,2060.6,0.60899229]
[1772733140498,13.69587955,2061.2,2060.7,18.33754621]
[1772733140499,7.34487955,2061.1,2060.7,18.33754621]
[1772733140699,0.00418041,2061.4,2060.8,0.60899229]
[1772733141803,0.00418041,2061.4,2060.9,18.9465385]
[1772733142003,0.00418041,2061.4,2060.9,0.60899229]
[1772733143107,0.00418041,2061.4,2060.6,0.0039019]
[1772733143108,0.00418041,2061.4,2061.0,18.33754621]
[1772733143301,0.00418041,2061.4,2060.8,0.77832794]
[1772733143302,0.24252,2061.3,2060.8,0.77832794]
[1772733143498,0.24252,2061.3,2060.6,0.0039019]
[1772733143704,6.351,2061.2,2060.7,18.38523981]
[1772733143903,0.24252,2061.3,2060.7,18.38523981]
[1772733144105,6.351,2061.2,2060.7,18.38523981]
[1772733144409,0.24255,2061.1,2060.7,17.77465839]
[1772733145010,3.92489472,2062.0,2060.8,0.61197419]
[1772733145213,6.351,2062.1,2061.0,0.60988398]
[1772733145505,3.92489472,2062.5,2061.2,0.60988398]
[1772733145708,0.24236,2062.7,2061.4,0.60988398]
[1772733145911,13.29573873,2063.1,2061.5,0.60988398]
[1772733145912,3.92489472,2062.9,2061.5,0.60988398]
[1772733146105,4.16720472,2063.2,2061.8,0.61058215]
[1772733146310,6.351,2063.1,2062.0,0.61058215]
[1772733146511,0.24232,2063.0,2062.0,0.61058215]
[1772733146710,0.24232,2063.0,2061.3,40.8]
[1772733146711,0.24238,2062.5,2062.1,17.77465839]
[1772733147009,6.352,2062.4,2062.1,0.00421729]
[1772733147604,6.352,2062.4,2062.1,17.77887568]
[1772733147811,6.352,2062.4,2062.1,0.00421729]
[1772733148409,6.351,2062.3,2062.1,0.00421729]
[1772733148807,0.24242,2062.2,2062.1,0.00421729]
[1772733149008,3.92489472,2062.6,2062.1,0.00421729]
[1772733149310,6.351,2062.5,2062.1,0.00421729]
[1772733149514,6.351,2062.4,2062.1,0.00421729]
[1772733149714,10.13067472,2062.3,2061.1,0.61240932]
[1772733150011,3.92489472,2062.0,2061.4,0.78254523]
[1772733150211,6.351,2061.9,2061.4,0.78254523]
[1772733150412,3.92489472,2062.0,2061.4,17.77887568]
[1772733150612,6.351,2061.9,2061.4,17.77887568]
[1772733150808,10.27589472,2061.9,2061.4,17.78350476]
[1772733151013,3.92489472,2062.0,2061.4,17.78350476]
[1772733151212,6.351,2061.9,2061.4,18.39765917]
[1772733151412,6.351,2061.9,2061.4,17.78350476]
[1772733151613,0.24247,2061.8,2061.4,17.78350476]
[1772733151805,6.351,2061.7,2061.4,17.78350476]
[1772733152009,6.35535896,2061.7,2061.4,18.39765917]
[1772733152711,7.33289152,2061.6,2061.4,17.78350476]
[1772733153308,5.52408829,2061.6,2061.5,0.61456675]
[1772733153515,6.351,2061.8,2061.5,0.61456675]
[1772733153715,6.351,2061.8,2061.6,17.77451672]
[1772733153915,4.63842252,2061.8,2061.6,17.77451672]
[1772733154209,4.48814416,2062.1,2061.6,17.77451672]
[1772733154414,6.352,2062.0,2061.7,0.5579033]
[1772733154613,0.56324944,2062.2,2061.8,0.77818627]
[1772733154813,0.56324944,2062.0,2061.6,16.99633045]
[1772733155617,0.56713621,2062.0,2061.6,16.99633045]
[1772733155918,0.24245,2061.9,2061.6,12.6340151]
[1772733156120,0.00388677,2062.0,2061.7,0.6012462]
[1772733156515,0.00388677,2062.0,2061.9,0.60251671]
[1772733156819,6.352,2062.2,2061.9,0.59862993]
[1772733157016,6.352,2062.2,2062.0,13.23458842]
[1772733157214,5.57045932,2062.2,2061.7,0.60057332]
[1772733157515,6.352,2062.3,2061.7,0.60057332]
[1772733157818,0.00134576,2062.7,2061.4,0.00462908]
[1772733157819,3.92489472,2062.5,2061.9,0.60057332]
[1772733158018,6.352,2062.5,2061.9,0.60057332]
[1772733158316,6.352,2062.5,2062.0,0.60322178]
[1772733158915,6.35626271,2062.5,2062.0,0.60322178]
[1772733159115,6.35626271,2062.5,2061.4,0.00462908]
[1772733159116,10.52354743,2062.5,2062.1,11.74925604]
[1772733159318,10.52354743,2062.5,2061.5,0.60322178]
[1772733159617,10.52354743,2062.5,2061.6,0.60322178]
[1772733159814,10.52354743,2062.5,2061.5,11.13763268]
[1772733159815,0.24243,2062.1,2061.5,11.13763268]
[1772733160014,0.24243,2062.1,2061.6,0.60322178]
[1772733160319,6.352,2062.2,2061.6,0.60322178]
[1772733160515,6.58824088,2062.2,2061.7,11.69553598]
[1772733160716,6.58824088,2062.2,2061.5,11.13763268]
[1772733160917,0.24243,2062.1,2061.5,11.13763268]
[1772733161119,0.24243,2062.1,2061.6,0.5579033]
[1772733161508,6.352,2062.4,2061.8,0.5579033]
[1772733161714,0.00426271,2062.5,2061.8,0.5579033]
[1772733161915,6.352,2062.6,2062.0,0.5579033]
[1772733162315,6.352,2062.6,2062.1,11.13763268]
[1772733162514,6.58972102,2062.6,2062.1,11.13763268]
[1772733162919,6.35779523,2062.6,2062.2,0.5579033]
[1772733163422,0.24238,2062.5,2062.3,10.39610166]
[1772733163621,0.24238,2062.5,2061.6,9.931]
[1772733163622,4.16727472,2062.5,2061.7,10.99734786]
[1772733163920,4.16727472,2062.5,2061.8,0.6012462]
[1772733163921,6.352,2062.4,2061.8,0.6012462]
[1772733164518,3.92489472,2062.5,2061.8,0.6012462]
[1772733164719,3.92489472,2062.5,2062.0,0.59789727]
[1772733165120,3.92489472,2062.5,2062.1,5.99929542]
[1772733165321,10.52505995,2062.6,2062.1,5.99929542]
[1772733165521,10.86991141,2062.5,2062.1,5.99929542]
[1772733165726,10.87660929,2062.5,2062.1,5.85037033]
[1772733166628,10.86991141,2062.5,2062.2,0.5963116]
[1772733166825,0.0098692,2063.1,2062.2,0.5963116]
[1772733167019,6.94647796,2063.1,2062.4,0.5579033]
[1772733167216,0.25036768,2063.4,2062.4,0.5579033]
[1772733167217,5.44160515,2063.0,2062.4,0.5579033]
[1772733167421,6.352,2063.3,2062.6,0.5579033]
[1772733167922,6.352,2063.2,2062.8,0.5579033]
[1772733168116,0.00623541,2063.2,2062.8,0.5579033]
[1772733168322,6.352,2063.3,2062.8,0.5579033]
[1772733168524,6.352,2063.3,2063.0,0.5579033]
[1772733169022,6.352,2063.3,2062.5,40.8]
[1772733169023,6.09934059,2064.1,2063.2,0.5579033]
[1772733169330,0.00572455,2064.1,2063.4,0.5579033]
[1772733169627,6.59914995,2064.6,2063.4,0.5579033]
[1772733169927,0.56324944,2064.8,2063.6,0.5579033]
[1772733170125,0.56324944,2064.8,2063.7,6.4024784]
[1772733170126,0.56324944,2064.7,2063.7,6.4024784]
[1772733170423,6.352,2064.6,2063.7,0.5579033]
[1772733170623,0.00364892,2064.6,2063.7,0.5579033]
[1772733170822,0.00364892,2064.6,2063.2,14.31826867]
[1772733170823,0.00364892,2064.6,2063.9,0.5579033]
[1772733171230,0.56689836,2064.6,2064.0,5.8445751]
[1772733172124,0.00364892,2064.6,2064.2,0.5579033]
[1772733172430,0.00364892,2064.6,2063.9,0.5579033]
[1772733173025,0.00364892,2064.6,2064.1,0.5579033]
[1772733173427,0.00364892,2064.6,2064.2,6.4024784]
[1772733173635,0.00364892,2064.6,2064.2,0.5579033]
[1772733174030,0.00364892,2064.6,2064.3,5.8445751]
[1772733174229,0.00364892,2064.6,2064.0,0.5579033]
[1772733174530,0.00364892,2064.6,2064.2,0.5579033]
[1772733175024,0.00364892,2064.6,2064.3,5.8445751]
[1772733175229,0.00364892,2064.6,2064.0,0.5579033]
[1772733175425,0.56324944,2064.5,2064.1,5.8445751]
[1772733175728,0.56689836,2064.6,2063.8,0.5579033]
[1772733175932,6.35,2064.5,2063.8,0.5579033]
[1772733176322,6.35,2064.5,2064.0,0.5579033]
[1772733176522,0.00364892,2064.6,2064.0,0.5579033]
[1772733176721,0.00364892,2064.6,2064.2,0.5579033]
[1772733177121,0.00364892,2064.6,2064.3,6.4024784]
[1772733177322,0.00364892,2064.6,2064.3,0.5579033]
[1772733177527,6.35,2065.2,2064.5,0.5579033]
[1772733177735,0.56324944,2065.1,2064.6,5.8445751]
[1772733177928,6.91324944,2065.1,2064.4,0.5579033]
[1772733178428,0.56324944,2065.0,2064.5,5.8445751]
[1772733178633,0.56324944,2065.0,2064.2,0.5579033]
[1772733178926,0.56324944,2065.0,2063.6,41.04224]
[1772733178927,0.56324944,2065.0,2064.4,0.5579033]
[1772733179129,6.35506037,2065.1,2064.4,0.5579033]
[1772733179331,0.56324944,2065.0,2064.5,2.47966136]
[1772733179631,0.2421,2064.9,2064.0,0.5579033]
[1772733179832,0.2421,2064.9,2064.1,1.97662136]
[1772733180032,0.2421,2064.9,2064.2,0.60124621]
[1772733180431,6.349,2064.8,2064.0,0.60296727]
[1772733180629,0.24212,2064.7,2063.8,0.60296727]